Cogmind - Beta 16.1 @@@ ROGUE MODE // 2026.04.05 @ 03:04:05 Player: KURIIRI Result: Destroyed by HM-7PL(R) with Subdweller Laser Performance ------------- Evolutions (0) 0 Regions Visited (2) 400 Robots Destroyed (43) 215 Value Destroyed (1146) 1146 Prototype IDs (0) 0 Alien Tech Used (0) 0 Bonus (0) 0 TOTAL SCORE: 1761 Bonus ------- None Cogmind --------- Core Integrity 0/250 Matter 300/300 Energy 65/100 System Corruption 0% Temperature Cool (14) Movement Rolling (110) Location -10/Subcaves Parts ------- > --- POWER (1) -------- (None) > --- PROPULSION (2) --- Subdweller Monowheel Subdweller Monowheel > --- UTILITY (2) ------ (None) > --- WEAPON (2) ------- Subdweller Beam Cannon Subdweller Beam Cannon > --- INVENTORY (5) ---- Wheel Subdweller Monowheel Huge Storage Unit Subdweller Beam Cannon Peak State ------------ > --- POWER ------------ Ion Engine > --- PROPULSION ------- Light Treads Compact Wheel > --- UTILITY ---------- Improved Heat Sink Huge Storage Unit > --- WEAPON ----------- Subdweller Laser Subdweller Machine Gun > --- INVENTORY -------- Light Ion Engine Light Ion Engine Light Treads Light Treads Wheel Wheel High-capacity Matter Pod Tractor Beam Riot Gun Particle Gun Assault Rifle Battle Rifle Light Cannon Grenade Launcher Grenade Launcher Grenade Launcher [Rating: 13] Favorites ----------- Power Light Ion Engine Engine Light Ion Engine Propulsion Light Treads Treads Light Treads Leg Aluminum Leg Wheel Subdweller Monowheel Utility Improved Heat Sink Device Improved Heat Sink Storage Huge Storage Unit Protection Scrap Shield Weapon Subdweller Beam Cannon Energy Gun Particle Gun Energy Cannon Subdweller Beam Cannon Ballistic Gun Assault Rifle Ballistic Cannon Light Cannon Build | -11 -10 -10 ------- Run | Yrd Mat Sub Slots Evolved . | . . . Power . | . . . Propulsion . | . . . Utility . | . . . Weapon . | . . . Parts Attached 29 | 3 10 16 Power 2 | . 1 1 Engine 2 | . 1 1 Core . | . . . Reactor . | . . . Propulsion 7 | 2 2 3 Treads 3 | 2 . 1 Leg . | . . . Wheel 4 | . 2 2 Hover . | . . . Flight . | . . . Utility 5 | 1 3 1 Device 2 | 1 1 . Storage 2 | . 2 . Processor . | . . . Hackware . | . . . Protection 1 | . . 1 Artifact . | . . . Weapon 15 | . 4 11 Energy Gun 4 | . 2 2 Energy Cannon 7 | . . 7 Ballistic Gun 3 | . 1 2 Ballistic Cannon 1 | . 1 . Launcher . | . . . Special Weapon . | . . . Impact Weapon . | . . . Slashing Weapon . | . . . Piercing Weapon . | . . . Special Melee Weapon . | . . . Unidentified Prototypes . | . . . Parts Lost 7 | . 1 6 Power 2 | . . 2 Propulsion 2 | . . 2 Utility 1 | . . 1 Weapon 2 | . 1 1 Highest Loss Streak 2 | . 1 2 To Critical Strikes . | . . . Average Backups 8 | 6 8 9 Power . | 1 1 . Propulsion 2 | 4 3 2 Utility 1 | . 1 1 Weapon 3 | 1 2 4 Tool/Special . | . . . Unused Backups 13 | . 3 10 Power 1 | . . 1 Propulsion 3 | . 1 2 Utility 2 | . 1 1 Weapon 7 | . 1 6 Tool/Special . | . . . Average Slot Usage (%) 88 | . 99 79 Engine 12 | . 14 11 Treads 16 | . 23 10 Wheel 11 | . 4 16 Device 9 | . 14 5 Storage 9 | . 14 5 Energy Gun 7 | . 13 3 Energy Cannon 12 | . . 22 Ballistic Gun 5 | . 9 1 Ballistic Cannon 2 | . 4 . Peak Build Rating 13 | 7 11 13 Average Rating 9 | 6 9 9 On Entrance 8 | 6 7 11 Avg Prop Armor Cover (%) 11 | . 12 11 Naked Turns . | . . . Heaviest Build 100 | 12 91 100 Greatest Support 40 | 40 40 40 Greatest Overweight (x) 9 | . 9 6 Average Overweight (x) 1 | . 1 1 Largest Inventory Capacity 25 | 8 25 25 Average Capacity 13 | 8 14 13 Most Carried 20 | 6 12 20 Average Carried 9 | 5 8 9 Final Capacity 25 | 8 25 5 Final Carried 12 | 4 12 4 Class Distribution -------------------- 95% | Mutant 4% | Subdweller-Mutant Dominant Class ---------------- Mutant | -10/Materials Mutant | -10/Subcaves Resources | -11 -10 -10 ----------- Run | Yrd Mat Sub Matter Collected 961 | 234 557 170 Remotely 297 | 10 287 . Salvage Created 1690 | 98 936 656 Parts 105 | 6 47 52 Haulers Intercepted 2 | . 2 . Recyclers Shooed 3 | . 3 . Parts Field Recycled . | . . . Retrieved Matter . | . . . Parts Self-Destructed 4 | . . 4 Prevented . | . . . Parts Restored . | . . . Kills | -11 -10 -10 ------- Run | Yrd Mat Sub Combat Hostiles Destroyed 29 | . 14 15 Guns 12 | . 11 1 Cannons 14 | . 3 11 Classes Destroyed 11 | 2 6 3 Worker 2 | . 2 . Tunneler 2 | 1 1 . Hauler 2 | . 2 . Recycler 4 | 1 3 . Operator 1 | . 1 . Watcher 3 | . 3 . Swarmer 4 | . 3 1 Grunt 11 | . 11 . Sentry 1 | . . 1 Artisan 3 | . . 3 Subdweller 13 | . . 13 Best Kill Streak 4 | 2 4 3 Combat Bots Only 3 | . 3 3 Max Kills in Single Turn 1 | 1 1 1 Gunslinging . | . . . Exploded . | . . . Melee . | . . . Uniques/NPCs Destroyed . | . . . Combat | -11 -10 -10 -------- Run | Yrd Mat Sub Hostile Shots Fired 105 | . 49 56 Missed 26 | . 17 9 Hits 79 | . 32 47 Projectile 79 | . 32 47 Critical Strikes 3 | . 1 2 Damage Taken 1388 | . 460 928 Core 253 | . 63 190 Absorbed by Shields . | . . . Core Remaining (%) 100 | 100 . . Volleys Fired 153 | 6 67 80 Largest 2 | 2 2 2 Hottest 160 | 40 85 160 Shots Fired 267 | 12 129 126 Gun 147 | 12 104 31 Cannon 120 | . 25 95 Launcher . | . . . Special . | . . . Kinetic 86 | 12 69 5 Thermal 163 | . 42 121 Explosive . | . . . Electromagnetic 18 | . 18 . Robot Hit Streak 13 | 2 8 13 Robot Miss Streak 4 | 1 4 1 Penetration Max . | . . . Secondary Targets . | . . . Shots Hit Robots 144 | 6 76 62 Core Hits 54 | 3 35 16 Critical Kills 3 | . . 3 Critical Parts Destroyed . | . . . Critical Strikes 6 | . 3 3 Burn 2 | . 2 . Meltdown 3 | . . 3 Blast 1 | . 1 . Melee Attacks . | . . . Impact . | . . . Slashing . | . . . Piercing . | . . . Sneak Attacks . | . . . Combat Hostiles . | . . . Follow-up Attacks . | . . . Damage Inflicted 2854 | 58 1193 1603 Guns 1358 | 58 980 320 Cannons 1478 | . 195 1283 Explosions . | . . . Melee . | . . . Ramming 18 | . 18 . Kinetic 740 | 58 571 111 Thermal 1937 | . 445 1492 Explosive . | . . . Electromagnetic 159 | . 159 . Impact . | . . . Slashing . | . . . Piercing . | . . . Highest Corruption . | . . . Average Corruption . | . . . Corruption Purged . | . . . Corruption Blocked . | . . . Overload Shots . | . . . Overflow Damage . | . . . Projectiles . | . . . Explosions . | . . . Melee . | . . . Knockbacks 5 | . 5 . Impact . | . . . Kinetic 5 | . 5 . Secondary . | . . . Self-Inflicted Damage . | . . . Shots . | . . . Rammed 3 | . 3 . Targets Rammed 4 | . 4 . Kicked . | . . . Crushed 1 | . 1 . Highest Temperature 191 | . 186 191 Average Temperature 47 | . 38 53 Received Heat Transfer 390 | . 231 159 Siege Activations . | . . . Martial Activations . | . . . Shielding Activations . | . . . Robots Disrupted . | . . . Combat Hostiles . | . . . Robots Corrupted . | . . . Combat Hostiles . | . . . Parts Fried . | . . . Impact Corruptions . | . . . Robots Melted 3 | . . 3 Combat Hostiles 3 | . . 3 Parts Melted 9 | . 3 6 Heat Transferred 3136 | . 1184 1952 Parts Sabotaged . | . . . Parts Stolen . | . . . Parts Stripped . | . . . Power Chain Reactions . | . . . Alert | -11 -10 -10 ------- Run | Yrd Mat Sub Maximum Alert Level . | . . . Low Security (%) 100 | 100 100 . Level 1 . | . . . Level 2 . | . . . Level 3 . | . . . Level 4 . | . . . Level 5 . | . . . High Security . | . . . Max Security . | . . . Peak Influence 139 | 10 139 . Initial . | . . . Average 68 | 1 69 . Influence Increases 593 | 10 543 40 Destroy 0b10 Robot/C 320 | . 280 40 Destroy 0b10 Robot/NC 70 | 10 60 . Destroy Leader 80 | . 80 . Successful Hack 31 | . 31 . Select Force Hacks 60 | . 60 . Disable Machine 30 | . 30 . Destroy Structure 2 | . 2 . Influence Decreases 593 | 10 429 154 Entered New Map 55 | . . 55 Time Decay 518 | 10 419 89 Lost Part 20 | . 10 10 Squads Dispatched 3 | . 3 . Investigation 2 | . 2 . Extermination . | . . . Reinforcement 1 | . 1 . Assault . | . . . Garrison . | . . . Intercept . | . . . Searches Triggered . | . . . Construction Impeded . | . . . Haulers Reinforced . | . . . Active Scanning Responses . | . . . Cargo Convoy Interrupts . | . . . Stealth | -11 -10 -10 --------- Run | Yrd Mat Sub Distress Signals 1 | . 1 . Communications Jammed . | . . . Distress Signals . | . . . Times Spotted 35 | . 19 16 Peak Tracking Total 2 | . 2 2 Tactical Retreats . | . . . Traps | -11 -10 -10 ------- Run | Yrd Mat Sub Traps Triggered 2 | . 2 . Indirectly . | . . . Trap Hack Attempts . | . . . Triggered . | . . . Disarmed . | . . . Reprogrammed . | . . . Reused . | . . . Traps Extracted . | . . . Installed . | . . . Triggered . | . . . Most Traps Carried 2 | . . 2 Machines | -11 -10 -10 ---------- Run | Yrd Mat Sub Machines Disabled 2 | . 2 . Max in Single Turn 1 | . 1 . Machines Repaired . | . . . Machines Dismantled . | . . . Machines Sabotaged . | . . . Overloaded Fab Kills . | . . . Hacking | -11 -10 -10 --------- Run | Yrd Mat Sub Machines Accessed 11 | . 10 1 Terminals 8 | . 8 . Fabricators . | . . . Repair Stations . | . . . Recycling Units 2 | . 2 . Scanalyzers . | . . . Garrison Access . | . . . Total Hacks 37 | . 36 1 Successful 21 | . 20 1 Failed 16 | . 16 . Catastrophic 1 | . 1 . Database Lockouts . | . . . Manual 31 | . 31 . Terminals 33 | . 33 . Fabricators . | . . . Repair Stations . | . . . Recycling Units 3 | . 3 . Scanalyzers . | . . . Garrison Access . | . . . Terminal Hacks 7 | . 6 1 Robot Analysis 3 | . 3 . Open Door 1 | . . 1 Terminal Index 1 | . 1 . Locate Traps 1 | . 1 . Zone Layout 1 | . 1 . Fabricator Hacks . | . . . Repair Station Hacks . | . . . Recycling Unit Hacks 1 | . 1 . Retrieve Components 1 | . 1 . Scanalyzer . | . . . Garrison Access Hacks . | . . . Unauthorized Hacks 13 | . 13 . Terminals 11 | . 11 . Track 1 | . 1 . Assimilate 1 | . 1 . Botnet 2 | . 2 . Disrupt 1 | . 1 . Operators 1 | . 1 . Skim 5 | . 5 . Fabricators . | . . . Repair Stations . | . . . Recycling Units 2 | . 2 . Tunnel 2 | . 2 . Scanalyzers . | . . . Garrison Access . | . . . Data Cores Recovered . | . . . Used . | . . . Hacking Detections 6 | . 6 . Full Trace Events . | . . . Feedback Events . | . . . Feedback Blocked . | . . . Robot Schematics Acquired . | . . . Robots Built . | . . . Authchips . | . . . Time . | . . . Total Robot Build Rating . | . . . Part Schematics Acquired . | . . . Parts Built . | . . . Authchips . | . . . Time . | . . . Total Part Build Rating . | . . . Part Studies Acquired . | . . . Parts Repaired . | . . . Time . | . . . Parts Recycled . | . . . Recycled Matter . | . . . Retrieved Matter . | . . . Retrieved Components 9 | . 9 . Parts Scanalyzed . | . . . Part Schematics Acquired . | . . . Parts Damaged . | . . . Bothacking | -11 -10 -10 ------------ Run | Yrd Mat Sub Used RIF Installer . | . . . Robots Hacked . | . . . Non-combat . | . . . Combat . | . . . Robot Hacks Applied . | . . . Relay Couplers Released . | . . . Fabnet Peak Effective % . | . . . Robots Rewired . | . . . Allies Hacked . | . . . Hacks Repelled . | . . . Allies | -11 -10 -10 -------- Run | Yrd Mat Sub Total Allies 1 | . 1 . Largest Group 1 | . 1 1 Highest-Rated Group 10 | . 10 10 Highest-Rated Ally 10 | . 10 10 Total Orders 3 | . 2 1 STAY 2 | . 1 1 FOLLOW 1 | . 1 . Ally Attacks . | . . . Total Damage . | . . . Kills . | . . . Allies Corrupted . | . . . Allies Melted . | . . . Intel | -11 -10 -10 ------- Run | Yrd Mat Sub Active Infowar (turns) . | . . . Robot Analysis Total 3 | . 3 . Derelict Logs Recovered 1 | . . 1 Drone Launches . | . . . Drone Recoveries . | . . . Exploration | -11 -10 -10 ------------- Run | Yrd Mat Sub Turns Passed 4775 | 60 2085 2630 Spaces Moved 2689 | 33 996 1660 Core . | . . . Treads 866 | 1 746 119 Legs 32 | 32 . . Wheels 1791 | . 250 1541 Hover . | . . . Flight . | . . . Fastest Speed 110 | 120 160 110 Average Speed 149 | 121 170 137 Slowest Speed 240 | 160 215 240 Overloaded Moves . | . . . Propulsion Burnouts . | . . . Robots Hopped . | . . . Potential Cave-ins . | . . . Cave-ins Triggered . | . . . Exploration Rate (%) 56 | 4 94 71 Regions Visited 2 Branch Regions 1 Pre-discovered Areas 4 | . 3 1 Known Exits Taken 1 | . 1 . Unknown Exits Taken 1 | 1 . . Scrap Searched 11 | . . 11 Spaces Dug 2 | . . 2 Terrain Destroyed 10 | . . 10 Melee . | . . . Projectile 10 | . . 10 AOE . | . . . Terrain Rammed . | . . . Walls Destroyed . | . . . Machines Disabled . | . . . Actions | -11 -10 -10 --------- Run | Yrd Mat Sub Total 3171 | 43 1248 1880 Wait 252 | . 158 94 Move 2687 | 32 995 1660 Hop . | . . . Pick Up 22 | . 9 13 Fast Attach 9 | 1 . 8 Attach 5 | 2 1 2 Detach 3 | . . 3 Swap 19 | . 11 8 Drop 17 | 2 3 12 Fire 153 | 6 67 80 Melee . | . . . Ram . | . . . Kick . | . . . Crush 4 | . 4 . Escape Stasis . | . . . Rewire . | . . . Trap . | . . . Miscellaneous . | . . . Route ------- -11/Scrapyard -10/Materials (discovered 5 exits: *Mat x3 / [*Min] / *Sub) -10/Subcaves (discovered 2 exits: [*Mat] / Rec) History --------- Turn | Location | Event 18 | -11/Scrapyard | Discovered new exit (range 3) 61 | -11/Scrapyard | Entered Materials 234 | -10/Materials | Discovered new exit (range 10) 317 | -10/Materials | Build established: Mutant 333 | -10/Materials | Discovered new exit (range 15) 768 | -10/Materials | Discovered new exit (range 13) 1192 | -10/Materials | Discovered new exit (range 8) 1245 | -10/Materials | Learned Storage security intel 1335 | -10/Materials | Identified exit to Materials 1335 | -10/Materials | Identified exit to Subcaves 1366 | -10/Materials | Learned location of Subcaves (-10) 1387 | -10/Materials | Learned 4 Recycling zone layouts 1428 | -10/Materials | Learned 8 Materials zone layouts 1460 | -10/Materials | Learned location of 2 exits from Materials 2146 | -10/Materials | Entered Subcaves 2146 | -10/Subcaves | Accompanied by 1 ally 2147 | -10/Subcaves | Identified exit to Recycling 2163 | -10/Subcaves | A swath of the cavern ceiling suddenly collapsed 2685 | -10/Subcaves | Discovered new exit (range 8) 2687 | -10/Subcaves | Learned location of Recycling (-9) 2700 | -10/Subcaves | Shifting Twisted Machinery released Sub. Shrapnel Launcher 2787 | -10/Subcaves | Shifting Twisted Machinery released Sub. Laser 3243 | -10/Subcaves | Core integrity fell below 50% 3305 | -10/Subcaves | Shifting Twisted Machinery released Sub. Machine Gun 3456 | -10/Subcaves | Shifting Twisted Machinery released Mak. Power Source 4710 | -10/Subcaves | Core integrity fell below 20% 4763 | -10/Subcaves | Disturbed a concealed Subdweller 4776 | -10/Subcaves | Destroyed by HM-7PL(R) with Subdweller Laser Last Messages --------------- 04066_ Acquired 5 matter. 04069_ Acquired Sub. Monowheel. 04088_ Sub. Beam Cannon shoots sparks and powers down. 04098_ LT-5IG(u) cries out in pain. 04098_ LT-5IG(u) destroyed. 04102_ Acquired 10 matter. 04304_ Sub. Monowheel shoots sparks and powers down. 04305_ Dropped Broken Sub. Beam Cannon. 04425_ Acquired Sub. Beam Cannon. 04450_ Sub. Beam Cannon shoots sparks and powers down. 04471_ Dropped Broken Sub. Beam Cannon. 04655_ Acquired 20 matter. 04694_ 44-4LM(R): "OHNO!" 6G-9DQ(R) emerges from concealment. 04707_ Lgt. Ion Engine destroyed. 04708_ 44-4LM(R) destroyed. 04717_ 6G-9DQ(R) destroyed. Map ----- +----------------------------------------------------+ | | | | | | | | | | | | | ?????????????????????????????????????????????????? | | ?????????????????????????????????????????????????? | | ?????????????????????????????????????????????????? | | ?????????????????????????????????????????????????? | | ?????????????????????????????????????????????????? | | ?????????????????????????????????????????????????? | | ?????????????????????????????????????????????????? | | ?????????????????????????????????????????????????? | | ?????????????????????????????????????????????????? | | ?????????????????????????????????????????????????? | | ?????????????????????????????????????????????????? | | ???????????????????????##????????????????????????? | | ???????????????????????#